bitfinex/quotes_BTCUSD_20241124
["timestamp","ask_amount","ask_price","bid_price","bid_amount"]
[1732455673424,0.0008575,97320.0,97319.0,0.36874243]
[1732455673628,0.0008575,97320.0,97319.0,0.094928]
[1732455674250,0.0008575,97320.0,97315.0,0.071931]
[1732455674399,0.0008575,97320.0,97313.0,0.1517162]
[1732455674400,0.0008575,97320.0,97319.0,0.2967942]
[1732455674607,0.0008575,97320.0,97319.0,0.094928]
[1732455674806,0.0008575,97320.0,97319.0,0.09595536]
[1732455676390,0.0008575,97320.0,97319.0,0.36904991]
[1732455676619,0.0008575,97320.0,97319.0,0.094928]
[1732455676849,0.0008575,97320.0,97319.0,0.09595536]
[1732455677372,0.1252,97319.0,97313.0,0.40501037]
[1732455677598,0.20591725,97314.0,97313.0,0.0017162]
[1732455677833,0.30793152,97314.0,97313.0,0.0017162]
[1732455686667,0.30765565,97314.0,97313.0,0.0017162]
[1732455688787,0.30765565,97314.0,97293.0,0.08980228]
[1732455688987,0.30765565,97314.0,97292.0,0.08980228]
[1732455688988,0.102782,97293.0,97292.0,0.08980228]
[1732455689163,0.102782,97293.0,97291.0,0.15]
[1732455689164,0.102783,97292.0,97291.0,0.173]
[1732455689411,0.205555,97298.0,97291.0,0.173]
[1732455689412,0.205555,97298.0,97291.0,0.023]
[1732455689612,0.205564,97294.0,97287.0,0.173]
[1732455689819,0.205547,97301.0,97287.0,0.173]
[1732455689999,0.102784,97292.0,97287.0,0.173]
[1732455690211,0.205564,97294.0,97287.0,0.173]
[1732455690436,0.205552,97299.0,97287.0,0.173]
[1732455690847,0.102779,97296.0,97287.0,0.173]
[1732455691278,0.205547,97301.0,97287.0,0.244951]
[1732455691483,0.102777,97298.0,97288.0,0.0010277]
[1732455691704,0.102778,97297.0,97288.0,0.0729787]
[1732455691910,0.102778,97297.0,97288.0,0.0010277]
[1732455692128,0.102781,97295.0,97288.0,0.0010277]
[1732455692760,0.102778,97297.0,97288.0,0.0729777]
[1732455693180,0.205549,97300.0,97291.0,0.001716]
[1732455693392,0.102776,97299.0,97292.0,0.0010277]
[1732455693584,0.205549,97300.0,97292.0,0.0010277]
[1732455693790,0.102777,97298.0,97292.0,0.0010277]
[1732455694002,0.102778,97297.0,97292.0,0.0010277]
[1732455694473,0.102779,97296.0,97292.0,0.0010277]
[1732455694692,0.0426336,97307.0,97292.0,0.0010277]
[1732455694693,0.02438138,97301.0,97292.0,0.0010277]
[1732455694925,0.02438138,97301.0,97291.0,0.001716]
[1732455694926,0.12716438,97292.0,97291.0,0.001716]
[1732455695148,0.22917865,97292.0,97291.0,0.001716]
[1732455695374,0.27567865,97292.0,97291.0,0.001716]
[1732455696048,0.35697865,97292.0,97291.0,0.001716]
[1732455699599,0.39911646,97292.0,97291.0,0.001716]
[1732455704848,0.29633346,97292.0,97262.0,0.15]
[1732455705060,0.102814,97263.0,97262.0,0.15]
[1732455705306,0.02438138,97268.0,97254.0,0.0008591]
[1732455705513,0.102821,97256.0,97254.0,0.0008591]
[1732455705729,0.205619,97267.0,97254.0,0.0008591]
[1732455705948,0.102821,97256.0,97254.0,0.0008591]
[1732455706170,0.205623,97265.0,97254.0,0.0008591]
[1732455706406,0.102818,97259.0,97254.0,0.0008591]
[1732455706620,0.102816,97261.0,97254.0,0.0008591]
[1732455706834,0.02438138,97273.0,97255.0,0.071975]
[1732455707041,0.0782,97286.0,97255.0,0.071975]
[1732455707042,0.02438138,97272.0,97256.0,0.071974]
[1732455707251,0.02438138,97271.0,97257.0,0.001028]
[1732455707471,0.02438138,97259.0,97258.0,0.00102801]
[1732455707683,0.12720338,97255.0,97254.0,0.0008591]
[1732455707902,0.23024504,97255.0,97254.0,0.0008591]
[1732455708119,0.22921765,97255.0,97254.0,0.0008591]
[1732455716632,0.30741765,97255.0,97254.0,0.0008591]
[1732455716872,0.30941765,97255.0,97254.0,0.0008591]
[1732455717574,0.30741765,97255.0,97254.0,0.0008591]
[1732455717804,0.50741765,97255.0,97254.0,0.0008591]
[1732455718036,0.50941765,97255.0,97254.0,0.0008591]
[1732455720726,0.50741765,97255.0,97254.0,0.0008591]
[1732455720960,0.30741765,97255.0,97254.0,0.0008591]
[1732455722213,0.406,97258.0,97254.0,0.0008591]
[1732455722448,0.02438138,97255.0,97254.0,0.0008591]
[1732455722681,0.12720338,97255.0,97254.0,0.0008591]
[1732455725329,0.02438138,97255.0,97254.0,0.0008591]
[1732455725781,0.12720338,97255.0,97254.0,0.0008591]
[1732455726467,0.02438138,97255.0,97254.0,0.0008591]
[1732455726951,0.12720338,97255.0,97254.0,0.0008591]
[1732455727200,0.02438138,97255.0,97254.0,0.0008591]
[1732455727504,0.205622,97266.0,97254.0,0.0831171]
[1732455727505,0.02438138,97261.0,97254.0,0.0831171]
[1732455727717,0.02438138,97261.0,97254.0,0.00188725]
[1732455727965,0.102818,97259.0,97254.0,0.0008591]
[1732455728253,0.12719738,97261.0,97254.0,0.0008591]
[1732455728506,0.257,97264.0,97255.0,0.082257]
[1732455728761,0.02438138,97261.0,97255.0,0.082257]
[1732455729040,0.02438138,97261.0,97257.0,0.082255]
[1732455729501,0.02438138,97262.0,97257.0,0.082255]
[1732455729720,0.02438138,97262.0,97254.0,0.00188723]
[1732455729968,0.257,97264.0,97259.0,0.082253]
[1732455730224,0.257,97264.0,97259.0,0.164507]
[1732455730452,0.257,97264.0,97254.0,0.00188723]
[1732455730453,0.257,97264.0,97263.0,0.082251]
[1732455731379,0.257,97264.0,97262.0,0.15]
[1732455731595,0.257,97264.0,97263.0,0.071969]
[1732455732016,0.257,97264.0,97262.0,0.15]
[1732455732230,0.257,97264.0,97263.0,0.071969]
[1732455732655,0.257,97264.0,97262.0,0.15]
[1732455733542,0.02438138,97263.0,97255.0,0.15]
[1732455733787,0.02438138,97263.0,97254.0,0.0008591]
[1732455733788,0.102822,97255.0,97254.0,0.0008591]
[1732455734012,0.02438138,97257.0,97243.0,0.03549078]
[1732455734229,0.102823,97254.0,97243.0,0.03549078]
[1732455734449,0.02438138,97257.0,97243.0,0.03549078]
[1732455734450,0.102825,97253.0,97243.0,0.03549078]
[1732455734674,0.102824,97253.0,97243.0,0.03549078]
[1732455734953,0.02438138,97257.0,97245.0,0.071982]
[1732455735237,0.02438138,97257.0,97243.0,0.18549078]
[1732455735456,0.102824,97254.0,97243.0,0.18549078]
[1732455735908,0.102821,97256.0,97244.0,0.071983]
[1732455736142,0.102821,97256.0,97244.0,0.221983]
[1732455736359,0.02438138,97257.0,97244.0,0.15]
[1732455736575,0.102821,97256.0,97244.0,0.15]
[1732455736819,0.12720138,97257.0,97244.0,0.15]
[1732455737068,0.02438138,97257.0,97245.0,0.071982]
[1732455737314,0.12720238,97257.0,97245.0,0.221982]
[1732455737549,0.02438138,97257.0,97245.0,0.221982]
[1732455737783,0.02438138,97257.0,97246.0,0.221982]
[1732455738030,0.02438138,97257.0,97246.0,0.221981]
[1732455738703,0.02438138,97257.0,97246.0,0.15]
[1732455738982,0.12720138,97257.0,97245.0,0.071982]
[1732455739445,0.12720138,97257.0,97246.0,0.15]
[1732455739909,0.12720138,97257.0,97250.0,0.071979]
[1732455739910,0.02438138,97257.0,97250.0,0.071979]
[1732455740160,0.02438138,97257.0,97246.0,0.15]
[1732455740161,0.02438138,97257.0,97246.0,0.221982]
[1732455740396,0.12720138,97257.0,97247.0,0.0906002]
[1732455740849,0.02438138,97257.0,97247.0,0.0906002]
[1732455741296,0.02438138,97257.0,97248.0,0.0906002]
[1732455741539,0.02438138,97261.0,97253.0,0.071977]
[1732455741760,0.02438138,97261.0,97246.0,0.13590031]
[1732455741761,0.02438138,97261.0,97254.0,0.00102811]
[1732455742006,0.02438138,97261.0,97255.0,0.00102811]
[1732455742226,0.02438138,97261.0,97252.0,0.00102812]
[1732455742450,0.02438138,97261.0,97252.0,0.09188824]
[1732455742740,0.02438138,97272.0,97254.0,0.09086012]
[1732455742968,0.02438138,97272.0,97267.0,0.071966]
[1732455743182,0.18717388,97257.0,97255.0,0.0454]
[1732455743469,0.18717388,97257.0,97256.0,0.071974]
[1732455744135,0.18717388,97257.0,97250.0,0.13626873]
[1732455744356,0.18717388,97257.0,97249.0,0.13626873]
[1732455744567,0.18717388,97257.0,97250.0,0.071979]
[1732455744779,0.18717388,97257.0,97248.0,0.13626873]
[1732455745041,0.18717388,97257.0,97247.0,0.20824973]
[1732455745262,0.18717388,97257.0,97248.0,0.07198]
[1732455745481,0.18717388,97257.0,97247.0,0.20824973]
[1732455745913,0.18717388,97257.0,97249.0,0.07198]
[1732455746133,0.18717388,97257.0,97252.0,0.071977]
[1732455746802,0.18717388,97257.0,97250.0,0.071978]
[1732455747030,0.18717388,97257.0,97254.0,0.071975]
[1732455747521,0.18717388,97257.0,97251.0,0.071978]
[1732455747748,0.18717388,97257.0,97252.0,0.071977]
[1732455747995,0.18717388,97257.0,97253.0,0.071976]
[1732455748918,0.18717388,97257.0,97254.0,0.071975]
[1732455749158,0.18717388,97257.0,97256.0,0.071974]
[1732455750294,0.18717388,97257.0,97254.0,0.071975]
[1732455750498,0.18717388,97257.0,97253.0,0.1363148]
[1732455751009,0.18717388,97257.0,97254.0,0.071976]
[1732455751463,0.18717388,97257.0,97255.0,0.071975]
[1732455751685,0.18717388,97257.0,97254.0,0.071976]
[1732455752128,0.18717388,97257.0,97256.0,0.071974]
[1732455754162,0.18803258,97257.0,97256.0,0.071974]
[1732455754470,0.18803258,97257.0,97256.0,0.25392067]
[1732455755610,0.18803258,97257.0,97256.0,0.071974]
[1732455755827,0.18803258,97257.0,97256.0,0.14810209]
[1732455756053,0.18803258,97257.0,97256.0,0.30356143]
[1732455756269,0.18803258,97257.0,97256.0,0.30253334]
[1732455756485,0.18803258,97257.0,97256.0,0.37450734]
[1732455756720,0.18803258,97257.0,97256.0,0.30253334]
[1732455758959,0.18803258,97257.0,97256.0,0.0751]
[1732455760618,0.18803258,97257.0,97256.0,0.30254058]
[1732455761321,0.18803258,97257.0,97256.0,0.0751]
[1732455766782,0.18803258,97257.0,97253.0,0.27465402]
[1732455767044,0.102823,97254.0,97253.0,0.0017172]
[1732455767712,0.102823,97254.0,97253.0,0.22946941]
[1732455768375,0.102823,97254.0,97253.0,0.0017172]
[1732455768830,0.27534604,97254.0,97253.0,0.18395596]
[1732455769054,0.27431865,97254.0,97253.0,0.0017172]
[1732455769294,0.27431865,97254.0,97253.0,0.13840401]
[1732455770868,0.27431865,97254.0,97253.0,0.0017172]
[1732455771121,0.17230438,97254.0,97253.0,0.13836549]
[1732455771335,0.12720438,97254.0,97253.0,0.18395566]
[1732455771755,0.12720438,97254.0,97253.0,0.0017172]
[1732455772219,0.12720438,97254.0,97253.0,0.18395566]
[1732455772856,0.12720438,97254.0,97253.0,0.0017172]
[1732455774679,0.12720438,97254.0,97253.0,0.1383326]
[1732455774899,0.12720438,97254.0,97253.0,0.0017172]
[1732455776384,0.12720438,97254.0,97253.0,0.13835324]
[1732455776830,0.12720438,97254.0,97253.0,0.0017172]
[1732455777464,0.12720438,97254.0,97253.0,0.13833806]
[1732455778146,0.102823,97254.0,97253.0,0.13833806]
[1732455778372,0.2301998,97257.0,97253.0,0.13833806]
[1732455778373,0.18803258,97257.0,97253.0,0.23054348]
[1732455778592,0.18803258,97257.0,97256.0,0.22764376]
[1732455779045,0.18803258,97257.0,97255.0,0.22764376]
[1732455779472,0.18803258,97257.0,97253.0,0.0017172]
[1732455780398,0.29085358,97257.0,97253.0,0.0017172]
[1732455780835,0.18803258,97257.0,97253.0,0.0017172]
[1732455781049,0.205642,97256.0,97253.0,0.0017172]
[1732455781292,0.102823,97254.0,97253.0,0.0017172]
[1732455783478,0.102823,97254.0,97253.0,0.22947065]
[1732455783693,0.102823,97254.0,97253.0,0.2294911]
[1732455783911,0.102823,97254.0,97253.0,0.0017172]
[1732455785018,0.25543177,97254.0,97253.0,0.22963257]
[1732455785227,0.35641865,97254.0,97253.0,0.0017172]
[1732455790864,0.25440438,97254.0,97253.0,0.0017172]
[1732455791297,0.17570438,97254.0,97253.0,0.0017172]
[1732455791520,0.17673177,97254.0,97253.0,0.0017172]
[1732455791967,0.12823177,97254.0,97253.0,0.0017172]
[1732455792432,0.12720438,97254.0,97253.0,0.0017172]
[1732455793157,0.102823,97254.0,97253.0,0.0017172]
[1732455793378,0.12720438,97254.0,97253.0,0.0017172]
[1732455793608,0.12823177,97254.0,97253.0,0.0017172]
[1732455794921,0.30894604,97254.0,97253.0,0.0017172]
[1732455795132,0.35641865,97254.0,97253.0,0.0017172]
[1732455795570,0.55641865,97254.0,97253.0,0.0017172]
[1732455795789,0.27721438,97245.0,97244.0,0.0017166]
[1732455795999,0.50642865,97245.0,97244.0,0.0017166]
[1732455796235,2.00642865,97245.0,97244.0,0.0017166]
[1732455797364,2.20642865,97245.0,97244.0,0.0017166]
[1732455798255,2.74232865,97245.0,97244.0,0.0017166]
[1732455798472,2.54232865,97245.0,97244.0,0.0017166]
[1732455799103,2.58318416,97245.0,97244.0,0.0017166]
[1732455800491,2.84018416,97245.0,97244.0,0.0017166]
[1732455801363,2.86049322,97245.0,97244.0,0.0017166]
[1732455802512,2.32659322,97245.0,97244.0,0.0017166]
[1732455803627,0.0282834,97244.0,97243.0,0.0017174]
[1732455803862,0.40854044,97244.0,97243.0,0.0017174]
[1732455804096,0.40751305,97244.0,97243.0,0.0017174]
[1732455805458,1.90751305,97244.0,97243.0,0.0017174]
[1732455805717,1.95651305,97244.0,97243.0,0.0017174]
[1732455807050,1.95851305,97244.0,97243.0,0.0017174]
[1732455807292,1.95651305,97244.0,97243.0,0.0017174]
[1732455809159,2.21351305,97244.0,97243.0,0.0017174]
[1732455811531,0.71351305,97244.0,97243.0,0.0017174]
[1732455811777,0.73401209,97244.0,97243.0,0.0017174]
[1732455815030,0.47901209,97244.0,97243.0,0.0017174]
[1732455815271,0.47701209,97244.0,97243.0,0.0017174]
[1732455815512,1.97701209,97244.0,97243.0,0.0017174]
[1732455816262,0.47901209,97244.0,97243.0,0.0017174]
[1732455816739,1.97901209,97244.0,97243.0,0.0017174]
[1732455816973,2.17701209,97244.0,97243.0,0.0017174]
[1732455817220,2.25831209,97244.0,97243.0,0.0017174]
[1732455817441,2.79621209,97244.0,97243.0,0.0017174]
[1732455820385,3.05321209,97244.0,97243.0,0.0017174]
[1732455820885,3.08110426,97244.0,97243.0,0.0017174]
[1732455821113,3.08110426,97244.0,97222.0,0.0017144]
[1732455821114,0.12723738,97223.0,97222.0,0.0017144]
[1732455821352,0.23027904,97223.0,97222.0,0.0017144]
[1732455821610,0.22925165,97223.0,97222.0,0.0017144]
[1732455821841,1.72925165,97223.0,97222.0,0.0017144]
[1732455822082,0.22925165,97223.0,97222.0,0.0017144]
[1732455824844,0.27183819,97223.0,97222.0,0.0017144]
[1732455825085,0.42183819,97223.0,97222.0,0.0017144]
[1732455829158,0.44207446,97223.0,97222.0,0.0017144]
[1732455829831,0.47207241,97223.0,97222.0,0.0017144]
[1732455830671,3.39407241,97223.0,97222.0,0.0017144]
[1732455830924,2.98807241,97223.0,97222.0,0.0017144]
[1732455831439,2.95807446,97223.0,97222.0,0.0017144]
[1732455832446,3.49397446,97223.0,97222.0,0.0017144]
[1732455835832,3.89997446,97223.0,97222.0,0.0017144]
[1732455836555,0.002,97192.0,97191.0,0.09128135]
[1732455836785,0.002,97192.0,97191.0,0.023]
[1732455837004,0.002,97192.0,97188.0,0.023]
[1732455838367,0.002,97192.0,97185.0,0.023]
[1732455838812,0.002,97192.0,97187.0,0.023]
[1732455839271,0.102887,97194.0,97187.0,0.023]
[1732455839490,0.102887,97194.0,97187.0,0.082315]
[1732455839703,0.102888,97193.0,97189.0,0.023]
[1732455839944,0.04269965,97194.0,97189.0,0.023]
[1732455840177,0.002,97196.0,97189.0,0.023]
[1732455840421,0.102887,97194.0,97189.0,0.023]
[1732455841109,0.002,97190.0,97189.0,0.023]
[1732455841585,0.04377738,97196.0,97189.0,0.023]
[1732455841814,0.102886,97195.0,97189.0,0.023]
[1732455842051,0.102887,97194.0,97189.0,0.023]
[1732455842499,0.14666238,97196.0,97189.0,0.023]
[1732455842977,0.12726738,97195.0,97189.0,0.023]
[1732455843208,0.002,97192.0,97189.0,0.105313]
[1732455843447,0.002,97192.0,97189.0,0.023]
[1732455843953,0.12726738,97195.0,97189.0,0.023]
[1732455844596,0.002,97192.0,97189.0,0.023]
[1732455844808,0.02438138,97195.0,97189.0,0.082313]
[1732455845027,0.02438138,97195.0,97188.0,0.1298]
[1732455845241,0.102887,97194.0,97188.0,0.1298]
[1732455845477,0.102888,97193.0,97188.0,0.1298]
[1732455845712,0.102888,97193.0,97186.0,0.082316]
[1732455845950,0.002,97191.0,97187.0,0.082315]
[1732455846183,0.002,97192.0,97187.0,0.082315]
[1732455846410,0.102888,97193.0,97187.0,0.082315]
[1732455846633,0.02438138,97195.0,97191.0,0.082311]
[1732455846912,0.02438138,97195.0,97186.0,0.00102884]
[1732455847128,0.12726738,97195.0,97189.0,0.082313]
[1732455847360,0.02438138,97195.0,97187.0,0.082315]
[1732455847601,0.12726738,97195.0,97189.0,0.082313]
[1732455848019,0.02438138,97195.0,97187.0,0.082315]
[1732455848256,0.102888,97193.0,97187.0,0.082315]
[1732455848475,0.12726738,97195.0,97187.0,0.16463]
[1732455848693,0.002,97192.0,97187.0,0.082315]
[1732455849140,0.002,97192.0,97187.0,0.16463]
[1732455849583,0.102887,97194.0,97189.0,0.082313]
[1732455849797,0.102887,97194.0,97187.0,0.082314]
[1732455850013,0.102887,97194.0,97188.0,0.082314]
[1732455850227,0.02809898,97195.0,97189.0,0.082313]
[1732455850445,0.102887,97194.0,97189.0,0.082313]
[1732455851140,0.02609898,97195.0,97187.0,0.082314]
[1732455851358,0.02609898,97195.0,97190.0,0.082312]
[1732455851820,0.02609898,97195.0,97193.0,0.082309]
[1732455852044,0.02609898,97195.0,97190.0,0.082312]
[1732455852743,0.0017176,97195.0,97194.0,0.082309]
[1732455852960,0.0017176,97195.0,97194.0,0.159409]
[1732455854124,0.0009962,97208.0,97207.0,0.082298]
[1732455854365,0.0009962,97208.0,97207.0,0.159398]
[1732455854596,0.02438138,97217.0,97207.0,0.159398]
[1732455854838,0.02438138,97217.0,97213.0,0.082293]
[1732455855065,0.12724438,97217.0,97208.0,0.082297]
[1732455855293,0.04155822,97218.0,97207.0,0.0771]
[1732455855524,0.02438138,97222.0,97217.0,0.08229]
[1732455855754,0.20569,97234.0,97207.0,0.0771]
[1732455855755,0.02537808,97227.0,97221.0,0.082286]
[1732455855976,0.0009967,97227.0,97223.0,0.082284]
[1732455856201,0.02438138,97225.0,97223.0,0.082284]
[1732455856422,0.02438138,97230.0,97215.0,0.00102853]
[1732455856649,0.09217906,97236.0,97233.0,0.082276]
[1732455856869,0.09217906,97236.0,97235.0,0.082274]
[1732455859203,0.09217906,97236.0,97231.0,0.082277]
[1732455859445,0.002,97237.0,97226.0,0.105282]
[1732455859687,0.002,97237.0,97216.0,0.30201427]
[1732455859688,0.002,97225.0,97216.0,0.0771]
[1732455859923,0.002,97225.0,97210.0,0.2271]
[1732455859924,0.20571,97224.0,97210.0,0.2271]
[1732455860138,0.002,97225.0,97210.0,0.0771]
[1732455860139,0.102868,97212.0,97210.0,0.0771]
[1732455860351,0.02438138,97222.0,97203.0,0.0771]
[1732455860568,0.10286,97220.0,97211.0,0.082294]
[1732455861027,0.002,97219.0,97206.0,0.09123801]
[1732455861239,0.002,97219.0,97211.0,0.082294]
[1732455861886,0.02438138,97222.0,97211.0,0.082294]
[1732455862101,0.102861,97219.0,97212.0,0.00102857]
[1732455862381,0.102861,97219.0,97211.0,0.082294]
[1732455862602,0.102861,97219.0,97206.0,0.09123801]
[1732455862824,0.102858,97221.0,97212.0,0.082294]
[1732455863056,0.102859,97220.0,97212.0,0.082294]
[1732455863668,0.02438138,97222.0,97207.0,0.082298]
[1732455863943,0.02438138,97222.0,97206.0,0.09123801]
[1732455863944,0.002,97220.0,97206.0,0.09123801]
[1732455864166,0.0498,97217.0,97201.0,0.09123801]
[1732455864386,0.205729,97215.0,97199.0,0.17354201]
[1732455864610,0.02438138,97216.0,97199.0,0.17354201]
[1732455864611,0.002,97205.0,97200.0,0.082304]
[1732455864825,0.002,97209.0,97199.0,0.082304]
[1732455865059,0.002,97209.0,97198.0,0.09123801]
[1732455865268,0.102877,97203.0,97197.0,0.09123801]
[1732455865496,0.002,97205.0,97196.0,0.09123801]
[1732455865708,0.002,97205.0,97197.0,0.09123801]
[1732455865934,0.104875,97205.0,97196.0,0.17354501]
[1732455866176,0.102872,97208.0,97196.0,0.09123801]
[1732455866394,0.102873,97207.0,97198.0,0.082305]
[1732455866611,0.002,97207.0,97196.0,0.09123801]
[1732455866861,0.002,97207.0,97197.0,0.082306]
[1732455866862,0.002,97205.0,97197.0,0.082306]
[1732455867089,0.104876,97205.0,97196.0,0.17354501]
[1732455867306,0.002,97205.0,97198.0,0.082305]
[1732455867529,0.002,97207.0,97195.0,0.0008586]
[1732455867745,0.102876,97204.0,97196.0,0.082307]
[1732455867975,0.205744,97209.0,97197.0,0.082306]
[1732455867976,0.002,97205.0,97197.0,0.082306]
[1732455868209,0.104876,97205.0,97197.0,0.082306]
[1732455868641,0.002,97205.0,97198.0,0.082305]
[1732455868857,0.002,97205.0,97196.0,0.082307]
[1732455869069,0.002,97205.0,97198.0,0.082306]
[1732455869299,0.002,97205.0,97195.0,0.0008586]
[1732455869300,0.102884,97196.0,97195.0,0.0008586]
[1732455869535,0.12726538,97196.0,97195.0,0.0008586]
[1732455869755,0.12926538,97196.0,97195.0,0.0008586]
[1732455873474,0.17026588,97196.0,97195.0,0.0008586]
[1732455876215,2.22526588,97196.0,97195.0,0.0008586]
[1732455878366,2.35236588,97196.0,97195.0,0.0008586]
[1732455879088,3.85236588,97196.0,97195.0,0.0008586]
[1732455879321,3.95438015,97196.0,97195.0,0.0008586]
[1732455880466,2.45438015,97196.0,97195.0,0.0008586]
[1732455882303,2.45238015,97196.0,97195.0,0.0008586]
[1732455883006,2.45438015,97196.0,97195.0,0.0008586]
[1732455885490,2.45438015,97196.0,97195.0,0.0008186]
[1732455887281,2.60438015,97196.0,97195.0,0.0008186]
[1732455887502,2.63295632,97196.0,97195.0,0.0008186]
[1732455887961,4.13295632,97196.0,97195.0,0.0008186]
[1732455890484,4.10438015,97196.0,97195.0,0.0008186]
[1732455896856,4.30438015,97196.0,97195.0,0.0008186]
[1732455897080,4.10438015,97196.0,97195.0,0.0008186]
[1732455900467,4.10609735,97196.0,97195.0,0.0008186]
[1732455901233,2.60609735,97196.0,97195.0,0.0008186]
[1732455901684,4.10609735,97196.0,97195.0,0.0008186]
[1732455901903,2.60609735,97196.0,97195.0,0.0008186]
[1732455902372,2.86309735,97196.0,97195.0,0.0008186]
[1732455903051,2.91725381,97196.0,97195.0,6e-07]
[1732455903528,4.41725381,97196.0,97195.0,6e-07]
[1732455903764,5.12757352,97196.0,97195.0,6e-07]
[1732455904308,5.35515381,97196.0,97195.0,6e-07]
[1732455904509,5.35515381,97196.0,97175.0,0.0008588]
[1732455904510,0.40358738,97176.0,97175.0,0.0008588]
[1732455904720,0.50560165,97176.0,97175.0,0.0008588]
[1732455904945,0.90560165,97176.0,97175.0,8e-07]
[1732455905176,2.40560165,97176.0,97175.0,8e-07]
[1732455906065,2.20560165,97176.0,97175.0,8e-07]
[1732455906282,2.00360165,97176.0,97175.0,8e-07]
[1732455906525,2.00560165,97176.0,97175.0,8e-07]
[1732455906778,2.04696008,97176.0,97175.0,8e-07]
[1732455907028,3.23986008,97176.0,97175.0,8e-07]
[1732455907260,3.42486008,97176.0,97175.0,8e-07]
[1732455907485,3.75918272,97176.0,97175.0,8e-07]
[1732455907923,3.73443625,97176.0,97175.0,8e-07]
[1732455908348,3.70586008,97176.0,97175.0,8e-07]
[1732455909039,0.12930938,97155.0,97154.0,0.99985964]
[1732455909275,0.12930938,97155.0,97154.0,1.00747878]
[1732455909276,0.23235104,97155.0,97154.0,1.00747878]
[1732455909493,0.23132365,97155.0,97154.0,1.00747878]
[1732455910409,0.23132365,97155.0,97154.0,0.99985964]
[1732455910633,0.23132365,97155.0,97154.0,1.00747739]
[1732455910850,0.27272801,97155.0,97154.0,1.00747739]
[1732455914070,0.27272801,97155.0,97154.0,1.00747288]
[1732455914832,0.27272801,97155.0,97154.0,0.9978774]
[1732455915502,0.42272801,97155.0,97154.0,0.9978774]
[1732455919176,0.42272801,97155.0,97154.0,0.8949474]
[1732455919177,1.00500725,97155.0,97154.0,0.8949474]
[1732455919432,0.98140418,97155.0,97154.0,0.8949474]
[1732455919689,1.51730418,97155.0,97154.0,0.8743614]
[1732455919910,3.01730418,97155.0,97154.0,0.8743614]
[1732455920582,3.27430418,97155.0,97154.0,0.8743614]
[1732455921267,3.29730418,97155.0,97154.0,0.7920174]
[1732455921485,3.32290725,97155.0,97154.0,0.60382718]
[1732455921699,3.32290725,97155.0,97154.0,0.55382718]
[1732455922389,3.32290725,97155.0,97154.0,0.47148318]
[1732455922611,3.29990725,97155.0,97154.0,0.45089718]
[1732455923280,3.27630418,97155.0,97154.0,0.45089718]
[1732455923516,3.27430418,97155.0,97154.0,0.38913918]
[1732455923774,3.24572801,97155.0,97154.0,0.38591922]
[1732455924001,2.84572801,97155.0,97154.0,0.38677822]
[1732455924258,2.69572801,97155.0,97154.0,0.38677822]
[1732455924494,1.19744601,97155.0,97154.0,0.38677822]
[1732455924754,1.39744601,97155.0,97154.0,0.38677822]
[1732455925419,1.54744601,97155.0,97154.0,0.38677822]
[1732455925642,1.01154601,97155.0,97154.0,0.38677822]
[1732455926591,0.81154601,97155.0,97154.0,0.38677822]
[1732455926820,1.01154601,97155.0,97154.0,0.38677822]
[1732455928545,2.00706463,97155.0,97154.0,0.38677822]
[1732455928780,2.03144601,97155.0,97154.0,0.38677822]
[1732455930007,2.11254601,97155.0,97154.0,0.38677822]
[1732455930280,2.15594601,97155.0,97154.0,0.38677822]
[1732455930505,2.50794601,97155.0,97154.0,0.38677822]
[1732455930732,3.04384601,97155.0,97154.0,0.38677822]
[1732455930955,3.24384601,97155.0,97154.0,0.34775451]
[1732455931948,3.24584601,97155.0,97154.0,0.34775451]
[1732455932184,3.24384601,97155.0,97154.0,0.34775451]
[1732455932412,2.98684601,97155.0,97154.0,0.34775451]
[1732455932855,2.98884601,97155.0,97154.0,0.34775451]
[1732455933330,2.98884601,97155.0,97154.0,0.22423851]
[1732455933331,3.24584601,97155.0,97154.0,0.22423851]
[1732455933549,3.24584601,97155.0,97154.0,0.10901492]
[1732455933550,2.98884601,97155.0,97154.0,0.10901492]
[1732455933769,2.98684601,97155.0,97154.0,0.0316415]
[1732455935647,2.98884601,97155.0,97154.0,0.0316415]
[1732455935910,2.98684601,97155.0,97154.0,0.0316415]
[1732455936136,2.98884601,97155.0,97154.0,0.0316415]
[1732455938346,4.41284601,97155.0,97154.0,5e-07]
[1732455938569,3.54134601,97155.0,97154.0,5e-07]
[1732455939300,0.32932538,97140.0,97124.0,0.0008582]
[1732455939527,2.00785126,97140.0,97124.0,0.0008582]
[1732455939779,2.00985126,97140.0,97124.0,0.0008582]
[1732455940002,3.50785126,97140.0,97124.0,0.0008582]
[1732455941849,3.55020313,97140.0,97124.0,0.0008582]
[1732455943491,4.01520313,97140.0,97124.0,0.0008582]
[1732455943752,4.95760313,97140.0,97124.0,0.0008582]
[1732455944241,4.95960313,97140.0,97124.0,0.0008582]
[1732455944484,5.15760313,97140.0,97139.0,1e-06]
[1732455944726,4.32013015,97140.0,97139.0,1e-06]
[1732455946144,4.28810313,97140.0,97139.0,1e-06]
[1732455946357,4.340747,97140.0,97139.0,1e-06]
[1732455947756,4.338747,97140.0,97139.0,0.000859]
[1732455947995,4.30672546,97140.0,97139.0,0.000859]
[1732455948228,4.10672546,97140.0,97139.0,0.000859]
[1732455948455,4.33874213,97140.0,97139.0,0.000859]
[1732455948671,4.30672546,97140.0,97139.0,0.000859]
[1732455948890,4.64757312,97140.0,97139.0,0.000859]
[1732455949338,4.61555546,97140.0,97139.0,0.000858]
[1732455949815,6.03955546,97140.0,97139.0,0.000858]
[1732455950288,6.07157464,97140.0,97139.0,0.000858]
[1732455950512,6.07357464,97140.0,97139.0,0.000858]
[1732455950973,6.07357464,97140.0,97139.0,1e-06]
[1732455951463,6.48558389,97140.0,97139.0,1e-06]
[1732455951700,0.55554138,97125.0,97124.0,0.0008582]
[1732455951924,2.58908565,97125.0,97124.0,0.0008582]
[1732455952365,4.08908565,97125.0,97124.0,0.0008582]
[1732455953082,4.12111239,97125.0,97124.0,0.0008582]
[1732455953320,5.54561239,97125.0,97124.0,0.0008582]
[1732455953588,5.51358565,97125.0,97124.0,0.0008582]
[1732455955218,5.55559587,97125.0,97124.0,0.0008582]
[1732455959139,5.51009587,97125.0,97124.0,0.0008582]
[1732455959610,5.43389587,97125.0,97124.0,0.0008582]
[1732455960555,4.19259587,97125.0,97124.0,0.0008582]